bitfinex-derivatives/quotes_BTCF0:USTF0_20241022
["timestamp","ask_amount","ask_price","bid_price","bid_amount"]
[1729566387876,0.074146,67458.0,67455.0,0.47302354]
[1729566388077,0.4708,67464.0,67457.0,0.11]
[1729566388272,0.4708,67464.0,67460.0,0.11]
[1729566388478,0.074142,67461.0,67460.0,0.11]
[1729566388680,0.11,67461.0,67457.0,0.11]
[1729566388980,0.074146,67458.0,67457.0,0.11]
[1729566389379,0.56997415,67458.0,67456.0,0.11]
[1729566389584,0.13502815,67457.0,67455.0,0.004]
[1729566389783,0.13502815,67456.0,67455.0,0.004]
[1729566390082,0.13502815,67456.0,67451.0,0.074153]
[1729566390279,0.32598654,67455.0,67451.0,0.074153]
[1729566390481,0.13502815,67454.0,67451.0,0.074153]
[1729566390779,0.13502815,67453.0,67451.0,0.074153]
[1729566390984,0.13502815,67452.0,67451.0,0.074153]
[1729566391391,0.13502815,67452.0,67451.0,0.079153]
[1729566391984,0.13602815,67452.0,67451.0,0.082153]
[1729566392588,0.13702815,67452.0,67451.0,0.091153]
[1729566393278,0.13702808,67452.0,67451.0,0.091153]
[1729566396397,0.13702808,67452.0,67451.0,0.074153]
[1729566397285,0.002,67452.0,67451.0,0.074153]
[1729566398487,0.074154,67450.0,67449.0,0.11]
[1729566399576,0.074154,67450.0,67449.0,0.184156]
[1729566399982,0.075154,67450.0,67449.0,0.189156]
[1729566400182,0.076154,67450.0,67449.0,0.189156]
[1729566402190,0.002,67450.0,67449.0,0.189156]
[1729566404492,0.002,67450.0,67434.0,0.36302369]
[1729566404493,0.13703507,67450.0,67434.0,0.36302369]
[1729566404800,0.002,67450.0,67449.0,0.184156]
[1729566405091,0.08384175,67450.0,67439.0,0.38783728]
[1729566405399,0.074165,67440.0,67439.0,0.3608]
[1729566405586,0.15600675,67440.0,67439.0,0.3608]
[1729566405785,0.20920007,67440.0,67439.0,0.3608]
[1729566405992,0.15600675,67440.0,67439.0,0.3608]
[1729566406295,0.15600675,67440.0,67439.0,0.3628]
[1729566406591,0.20920007,67440.0,67439.0,0.3628]
[1729566406783,0.20920007,67440.0,67439.0,0.3688]
[1729566406784,0.21020007,67440.0,67439.0,0.3688]
[1729566406980,0.21120007,67440.0,67439.0,0.3708]
[1729566410093,0.21120007,67440.0,67439.0,0.5408]
[1729566411495,0.21120007,67440.0,67439.0,0.18]
[1729566411990,0.21120007,67440.0,67439.0,0.254167]
[1729566412590,0.21120007,67440.0,67439.0,0.09087931]
[1729566412591,0.076165,67440.0,67439.0,0.09087931]
[1729566419594,0.21122177,67440.0,67439.0,0.09087931]
[1729566420495,0.21122177,67440.0,67439.0,0.07232346]
[1729566421903,0.13705683,67440.0,67439.0,0.24232346]
[1729566422400,0.20022175,67440.0,67436.0,0.07417]
[1729566422702,0.23606517,67438.0,67436.0,0.07417]
[1729566423003,0.08185497,67437.0,67436.0,0.07417]
[1729566423994,0.08185497,67437.0,67436.0,0.07517]
[1729566424499,0.08185497,67437.0,67436.0,0.07417]
[1729566424804,0.08285497,67437.0,67436.0,0.07517]
[1729566425907,0.08385497,67437.0,67436.0,0.07517]
[1729566427710,0.002,67437.0,67436.0,0.07517]
[1729566428402,0.16195807,67469.0,67447.0,0.074157]
[1729566428403,0.3608,67456.0,67447.0,0.074157]
[1729566428608,0.3608,67456.0,67436.0,0.74005]
[1729566428609,0.074155,67450.0,67448.0,0.184157]
[1729566429203,0.4708,67456.0,67448.0,0.184157]
[1729566429506,0.3618,67449.0,67448.0,0.184157]
[1729566430205,0.3628,67449.0,67448.0,0.186157]
[1729566431416,0.3628,67449.0,67448.0,0.187157]
[1729566432399,0.3628,67449.0,67448.0,0.21322228]
[1729566432906,0.4728,67449.0,67448.0,0.10322228]
[1729566433312,0.4728,67449.0,67448.0,0.077157]
[1729566434008,0.4728,67449.0,67448.0,0.187157]
[1729566434416,0.4728,67449.0,67448.0,0.003]
[1729566434711,0.546956,67449.0,67448.0,0.003]
[1729566435213,0.074165,67440.0,67439.0,0.00116]
[1729566435513,0.074171,67435.0,67434.0,0.00222369]
[1729566435717,0.50712674,67440.0,67434.0,0.11222369]
[1729566435718,0.074167,67439.0,67434.0,0.11222369]
[1729566436013,0.3608,67442.0,67439.0,0.11]
[1729566436314,0.3608,67442.0,67439.0,0.17]
[1729566436614,0.3608,67442.0,67439.0,0.244166]
[1729566438013,0.002,67440.0,67439.0,0.244166]
[1729566438608,0.3628,67442.0,67439.0,0.244166]
[1729566439113,0.3618,67442.0,67439.0,0.244166]
[1729566439318,0.001,67440.0,67439.0,0.244166]
[1729566439504,0.002,67440.0,67439.0,0.244166]
[1729566440712,0.001,67440.0,67439.0,0.244166]
[1729566440911,0.001,67440.0,67439.0,0.074166]
[1729566441122,0.3618,67442.0,67439.0,0.074166]
[1729566441419,0.001,67440.0,67439.0,0.074166]
[1729566442114,0.002,67440.0,67439.0,0.074166]
[1729566442717,0.13705473,67440.0,67434.0,0.17222369]
[1729566442918,0.13505473,67439.0,67436.0,0.07417]
[1729566443115,0.08185367,67438.0,67436.0,0.07417]
[1729566443310,0.08185367,67437.0,67436.0,0.07417]
[1729566444605,0.08285367,67437.0,67436.0,0.07417]
[1729566445712,0.13605473,67437.0,67436.0,0.07417]
[1729566445917,0.08385367,67437.0,67436.0,0.07417]
[1729566446318,0.13705473,67437.0,67436.0,0.07417]
[1729566446517,0.08385367,67437.0,67436.0,0.07417]
[1729566449621,0.002,67437.0,67436.0,0.07417]
[1729566450814,0.002,67437.0,67434.0,0.19865264]
[1729566450815,0.074171,67436.0,67434.0,0.02865264]
[1729566451115,0.074171,67435.0,67434.0,0.02642895]
[1729566451314,0.074171,67435.0,67433.0,0.04435967]
[1729566451517,0.074171,67435.0,67434.0,0.074172]
[1729566451719,0.074171,67435.0,67434.0,0.244172]
[1729566452022,0.074171,67435.0,67433.0,0.07093233]
[1729566452023,0.074172,67434.0,67433.0,0.07093233]
[1729566454223,0.088172,67434.0,67433.0,0.07093233]
[1729566454526,0.102172,67434.0,67433.0,0.07093233]
[1729566457715,0.18402583,67434.0,67433.0,0.02657266]
[1729566457915,0.18402583,67434.0,67432.0,0.074174]
[1729566458119,0.08185383,67433.0,67432.0,0.05458256]
[1729566458317,0.08185383,67433.0,67432.0,0.16458256]
[1729566458520,0.08185383,67433.0,67432.0,0.191214]
[1729566460621,0.09585383,67433.0,67432.0,0.191214]
[1729566460821,0.10985383,67433.0,67432.0,0.191214]
[1729566461429,0.10985739,67433.0,67432.0,0.191214]
[1729566464830,0.028,67433.0,67432.0,0.191214]
[1729566465528,0.028,67433.0,67432.0,0.25060954]
[1729566467325,0.028,67433.0,67432.0,0.191214]
[1729566468421,0.028,67433.0,67432.0,0.25057321]
[1729566469026,0.028,67433.0,67432.0,0.191214]
[1729566469334,0.028,67433.0,67432.0,0.25057429]
[1729566470431,0.028,67433.0,67432.0,0.191214]
[1729566471929,0.10985833,67433.0,67432.0,0.13663144]
[1729566472533,0.10985833,67433.0,67432.0,0.21080544]
[1729566475629,0.16306242,67433.0,67432.0,0.21080544]
[1729566476432,0.16306216,67433.0,67432.0,0.21080544]
[1729566477032,0.10985807,67433.0,67432.0,0.21080544]
[1729566477234,0.16306216,67433.0,67432.0,0.21080544]
[1729566477432,0.10985807,67433.0,67432.0,0.21080544]
[1729566477635,0.16306216,67433.0,67432.0,0.21080544]
[1729566477837,0.10985807,67433.0,67432.0,0.21080544]
[1729566478028,0.16306216,67433.0,67432.0,0.21080544]
[1729566478237,0.10985807,67433.0,67432.0,0.21080544]
[1729566478640,0.16306216,67433.0,67432.0,0.21080544]
[1729566478940,0.10985807,67433.0,67432.0,0.21080544]
[1729566479438,0.16306216,67433.0,67432.0,0.21080544]
[1729566479741,0.028,67433.0,67432.0,0.39809749]
[1729566480438,0.028,67433.0,67432.0,0.28505352]
[1729566482240,0.028,67433.0,67432.0,0.17505352]
[1729566483942,0.028,67433.0,67432.0,0.28809719]
[1729566484146,0.028,67433.0,67432.0,0.39809719]
[1729566486943,0.028,67433.0,67432.0,0.27016701]
[1729566489430,0.028,67433.0,67432.0,0.2154443]
[1729566490437,0.028,67433.0,67432.0,0.21080544]
[1729566490844,0.028,67433.0,67432.0,0.21544436]
[1729566491939,0.028,67433.0,67432.0,0.27016828]
[1729566494744,0.074169,67437.0,67432.0,0.24967376]
[1729566494943,0.074169,67437.0,67436.0,0.07417]
[1729566495250,0.3608,67438.0,67437.0,0.074169]
[1729566495441,0.3608,67438.0,67437.0,0.18721132]
[1729566495845,0.3608,67438.0,67437.0,0.26141569]
[1729566496242,0.3608,67438.0,67437.0,0.18721132]
[1729566497646,0.3618,67438.0,67437.0,0.20021132]
[1729566498049,0.001,67438.0,67437.0,0.20021132]
[1729566498557,0.001,67438.0,67437.0,0.21421132]
[1729566501759,0.03063434,67439.0,67437.0,0.6922048]
[1729566501942,0.32330369,67441.0,67438.0,0.73943059]
[1729566502147,0.074165,67440.0,67439.0,0.5910358]
[1729566503060,0.184165,67440.0,67439.0,0.5910358]
[1729566504955,0.185165,67440.0,67439.0,0.6050358]
[1729566505654,0.185165,67440.0,67439.0,0.75343059]
[1729566505846,0.186165,67440.0,67439.0,0.6180358]
[1729566509666,0.186165,67440.0,67439.0,0.7664281]
[1729566509852,0.186165,67440.0,67439.0,0.027]
[1729566516263,0.186165,67440.0,67439.0,0.101167]
[1729566517062,0.112,67440.0,67439.0,0.68538855]
[1729566517253,0.002,67440.0,67439.0,0.68538855]
[1729566517564,0.076165,67440.0,67439.0,0.68538855]
[1729566518764,0.076165,67440.0,67439.0,0.68122047]
[1729566519558,0.076165,67440.0,67439.0,0.82961277]
[1729566519859,0.076165,67440.0,67439.0,0.82964294]
[1729566521455,0.076165,67440.0,67439.0,0.75547594]
[1729566521655,0.076165,67440.0,67439.0,0.60708364]
[1729566521957,0.03163127,67440.0,67439.0,0.60708364]
[1729566523157,0.39243127,67440.0,67439.0,0.60708364]
[1729566524059,0.03163127,67440.0,67439.0,0.60708364]
[1729566524259,0.39243127,67440.0,67439.0,0.60708364]
[1729566524960,0.39243127,67440.0,67439.0,0.54837228]
[1729566525258,0.39243127,67440.0,67439.0,0.54766193]
[1729566525665,0.50243127,67440.0,67439.0,0.54766193]
[1729566526063,0.50243127,67440.0,67439.0,0.42893037]
[1729566526956,0.14163127,67440.0,67439.0,0.42893037]
[1729566529570,0.50243127,67440.0,67439.0,0.42893037]
[1729566529970,0.14163127,67440.0,67439.0,0.42893037]
[1729566530270,0.50243127,67440.0,67439.0,0.42893037]
[1729566531769,0.14163127,67440.0,67439.0,0.42893037]
[1729566531966,0.14163127,67440.0,67439.0,0.027]
[1729566532278,0.50243127,67440.0,67439.0,0.027]
[1729566536470,0.14163127,67440.0,67439.0,0.027]
[1729566536670,0.50243127,67440.0,67439.0,0.027]
[1729566538772,0.39243127,67440.0,67439.0,0.027]
[1729566539070,0.50243127,67440.0,67439.0,0.027]
[1729566539970,0.11,67440.0,67439.0,0.60580315]
[1729566540364,0.184165,67440.0,67439.0,0.60580315]
[1729566542066,0.13963166,67440.0,67439.0,0.60580315]
[1729566542866,0.074165,67440.0,67439.0,0.60580315]
[1729566543066,0.184165,67440.0,67439.0,0.60580315]
[1729566544266,0.184165,67440.0,67439.0,0.42875192]
[1729566547079,0.184165,67440.0,67439.0,0.027]
[1729566555094,0.11,67440.0,67439.0,0.5961039]
[1729566555494,0.184165,67440.0,67439.0,0.5961039]
[1729566555694,0.184165,67440.0,67439.0,0.72967801]
[1729566556097,0.184165,67440.0,67439.0,0.5961039]
[1729566561811,0.13963196,67440.0,67439.0,0.5961039]
[1729566562005,0.13963196,67440.0,67439.0,0.027]
[1729566565609,0.24963196,67440.0,67439.0,0.027]
[1729566565911,0.24963196,67440.0,67425.0,0.00222461]
[1729566565912,0.074181,67426.0,67425.0,0.00222461]
[1729566566116,0.294181,67426.0,67425.0,0.00222461]
[1729566566709,1.099901,67426.0,67425.0,0.00222461]
[1729566566908,1.099901,67426.0,67414.0,0.3608]
[1729566566909,0.074193,67415.0,67414.0,0.3608]
[1729566567114,0.184193,67415.0,67414.0,0.3608]
[1729566567618,0.074193,67415.0,67414.0,0.3608]
[1729566568620,0.081193,67415.0,67414.0,0.3608]
[1729566569518,0.018,67415.0,67409.0,0.026374]
[1729566569713,0.184198,67410.0,67404.0,0.074205]
[1729566569912,0.3608,67411.0,67404.0,0.074205]
[1729566569913,0.11,67405.0,67404.0,0.074205]
[1729566570112,0.3608,67411.0,67404.0,0.77845048]
[1729566570312,0.3608,67411.0,67407.0,0.11831037]
[1729566570619,0.3608,67411.0,67408.0,0.39638653]
[1729566570809,0.3608,67411.0,67409.0,0.39638653]
[1729566570810,0.434998,67411.0,67409.0,0.39638653]
[1729566571010,0.434998,67411.0,67410.0,0.34650066]
[1729566571216,0.544998,67411.0,67410.0,0.24297875]
[1729566572517,0.4738,67411.0,67410.0,0.23874297]
[1729566572823,0.552997,67411.0,67410.0,0.23874297]
[1729566573215,0.552997,67411.0,67410.0,0.10891749]
[1729566573713,0.192197,67411.0,67410.0,0.10891749]
[1729566573912,0.008,67411.0,67410.0,0.31282633]
[1729566579020,0.008,67411.0,67410.0,0.3119977]
[1729566581824,0.07345001,67412.0,67410.0,0.3119977]
[1729566582025,0.07339502,67413.0,67411.0,0.2377997]
[1729566582227,0.07339502,67413.0,67412.0,0.2377997]
[1729566582423,0.18339502,67413.0,67412.0,0.23708411]
[1729566584926,0.19039502,67413.0,67412.0,0.23808411]
[1729566585127,0.117,67413.0,67412.0,0.001]
[1729566585328,0.191195,67413.0,67412.0,0.001]
[1729566585728,0.196195,67413.0,67412.0,0.001]
[1729566590135,0.196195,67413.0,67412.0,0.0452828]
[1729566591236,0.196195,67413.0,67412.0,0.001]
[1729566592139,0.196195,67413.0,67412.0,0.38540229]
[1729566592443,0.196195,67413.0,67412.0,0.38551467]
[1729566594334,0.196195,67413.0,67412.0,0.50382504]
[1729566595233,0.196195,67413.0,67412.0,0.55541366]
[1729566595433,0.12194489,67413.0,67412.0,0.68858589]
[1729566596347,0.12194489,67413.0,67412.0,0.55541366]
[1729566597342,0.12194489,67413.0,67412.0,0.55402112]
[1729566600140,0.005,67413.0,67412.0,0.001]
[1729566600344,0.005,67413.0,67412.0,0.075196]
[1729566600541,0.115,67413.0,67412.0,0.075196]
[1729566603243,0.15133834,67413.0,67412.0,0.075196]
[1729566604248,0.005,67413.0,67412.0,0.185196]
[1729566604747,0.3608,67420.0,67412.0,0.111]
[1729566604942,0.3608,67420.0,67418.0,0.074189]
[1729566605144,0.3608,67420.0,67419.0,0.074189]
[1729566605944,0.3728,67420.0,67419.0,0.074189]
[1729566606643,0.3738,67420.0,67419.0,0.075189]
[1729566606947,0.3778,67420.0,67419.0,0.075189]
[1729566607250,0.3778,67420.0,67419.0,0.30856256]
[1729566607547,0.40404988,67420.0,67419.0,0.30856256]
[1729566607739,0.41104988,67420.0,67419.0,0.30956256]
[1729566608945,0.41104988,67420.0,67419.0,0.23537356]
[1729566609148,0.48523688,67420.0,67419.0,0.23537356]
[1729566615456,0.48523688,67420.0,67419.0,0.23561923]
[1729566618158,0.48523688,67420.0,67416.0,0.08905122]
[1729566618159,0.074189,67419.0,67416.0,0.08905122]
[1729566618457,0.074189,67419.0,67405.0,0.0022253]
[1729566618458,0.074194,67414.0,67413.0,0.08905122]
[1729566618650,0.074194,67414.0,67413.0,0.08903204]
[1729566618651,0.294194,67414.0,67413.0,0.08903204]
[1729566618849,0.22,67414.0,67405.0,0.10612139]
[1729566619049,0.074202,67407.0,67406.0,0.23047204]
[1729566619253,0.3608,67410.0,67406.0,0.27360017]
[1729566619459,0.435001,67408.0,67407.0,0.37742753]
[1729566619654,0.545001,67408.0,67407.0,0.37742753]
[1729566619860,0.545001,67408.0,67407.0,0.12657595]
[1729566620157,0.545001,67408.0,67407.0,0.12619374]
[1729566621060,0.555001,67408.0,67407.0,0.12619374]
[1729566622052,0.566001,67408.0,67407.0,0.12619374]
[1729566622255,0.566001,67408.0,67405.0,0.0022253]
[1729566622256,0.074203,67406.0,67405.0,0.0022253]
[1729566623763,0.082203,67406.0,67405.0,0.0022253]
[1729566623959,0.091203,67406.0,67405.0,0.0022253]
[1729566630363,0.184203,67406.0,67405.0,0.2746661]
[1729566632663,0.184203,67406.0,67405.0,0.37730266]
[1729566632871,0.184203,67406.0,67405.0,0.27359873]
[1729566633068,0.3608,67416.0,67405.0,0.4885165]
[1729566633275,0.11,67413.0,67411.0,0.11]
[1729566633460,0.11,67413.0,67412.0,0.23098667]
[1729566633857,0.3608,67423.0,67412.0,0.23098667]
[1729566634164,0.11,67419.0,67416.0,0.21370093]
[1729566634360,0.11,67419.0,67417.0,0.3346876]
[1729566634560,0.11,67419.0,67418.0,0.23098667]
[1729566635355,0.184189,67419.0,67418.0,0.23098667]
[1729566635957,0.184189,67419.0,67418.0,0.23198667]
[1729566636166,0.198189,67419.0,67418.0,0.23198667]
[1729566637263,0.198189,67419.0,67418.0,0.001]
[1729566637468,0.212189,67419.0,67418.0,0.002]
[1729566645374,0.212189,67419.0,67418.0,0.10637086]
[1729566647364,0.028,67419.0,67418.0,0.18056086]
[1729566647567,0.028,67419.0,67418.0,0.30480213]
[1729566650363,0.028,67419.0,67418.0,0.18056086]
[1729566650975,0.028,67419.0,67418.0,0.29056086]
[1729566652169,0.3608,67423.0,67422.0,0.074185]
[1729566652373,0.3608,67423.0,67422.0,0.184185]
[1729566653169,0.3618,67423.0,67422.0,0.191185]
[1729566655281,0.3628,67423.0,67422.0,0.205185]
[1729566655987,0.3628,67423.0,67422.0,0.23180731]
[1729566660287,0.3628,67423.0,67422.0,0.33552381]
[1729566661391,0.3628,67423.0,67422.0,0.45921326]
[1729566661984,0.002,67423.0,67422.0,0.33552381]
[1729566662186,0.0763973,67434.0,67423.0,0.074184]
[1729566662385,0.0763973,67434.0,67432.0,0.184173]
[1729566662592,0.0763973,67434.0,67433.0,0.1778895]
[1729566662891,0.0763973,67434.0,67433.0,0.30082392]
[1729566663790,0.0773973,67434.0,67433.0,0.30082392]
[1729566663974,0.0773973,67434.0,67433.0,0.22665092]
[1729566664381,0.0032253,67434.0,67433.0,0.17757395]
[1729566664583,0.0042253,67434.0,67433.0,0.17757395]
[1729566665176,0.0032253,67434.0,67433.0,0.19157395]
[1729566665382,0.0032253,67434.0,67433.0,0.20557395]
[1729566666586,0.0032253,67434.0,67433.0,0.32874612]
[1729566667495,0.0032253,67434.0,67433.0,0.20557395]
[1729566667690,0.0032253,67434.0,67433.0,0.20529583]
[1729566669292,0.3608,67443.0,67442.0,0.074163]
[1729566669490,0.3608,67460.0,67442.0,0.11]
[1729566669690,0.184151,67453.0,67448.0,0.184157]
[1729566670003,0.3608,67460.0,67448.0,0.39644776]
[1729566670191,0.3608,67460.0,67459.0,0.11]
[1729566670589,0.3608,67460.0,67457.0,0.074146]
[1729566670590,0.38701874,67460.0,67457.0,0.184146]
[1729566670900,0.11,67458.0,67457.0,0.184146]
[1729566671194,0.11,67458.0,67457.0,0.24332482]
[1729566671401,0.11,67458.0,67457.0,0.184146]
[1729566671791,0.11,67458.0,67457.0,0.11]
[1729566672088,0.11,67458.0,67447.0,0.43584124]
[1729566672089,0.074147,67457.0,67454.0,0.05917882]
[1729566672288,0.11,67456.0,67453.0,0.05917882]
[1729566672488,0.11,67456.0,67449.0,0.11]
[1729566672489,0.11,67454.0,67452.0,0.074152]
[1729566673499,0.11,67456.0,67453.0,0.004]
[1729566673805,0.11,67456.0,67455.0,0.04428904]
[1729566674402,0.14631703,67456.0,67454.0,0.115]
[1729566674597,0.03631703,67455.0,67454.0,0.11]
[1729566675204,0.08183806,67455.0,67454.0,0.06671222]
[1729566675508,0.03631703,67455.0,67454.0,0.06671222]
[1729566675710,0.074147,67457.0,67455.0,0.006]
[1729566676010,0.11046499,67456.0,67455.0,0.116]
[1729566676910,0.22046499,67456.0,67455.0,0.119]
[1729566677110,0.184148,67456.0,67455.0,0.113]
[1729566677309,0.036317,67456.0,67455.0,0.113]
[1729566677899,0.036317,67456.0,67455.0,0.119]
[1729566678806,0.036317,67456.0,67455.0,0.116]
[1729566679007,0.036317,67456.0,67455.0,0.12]
[1729566679207,0.46116174,67460.0,67455.0,0.12]
[1729566679407,0.03631698,67459.0,67455.0,0.01]
[1729566679612,0.03631698,67458.0,67455.0,0.01]
[1729566679803,0.46116174,67460.0,67459.0,0.11]
[1729566680009,0.49747872,67460.0,67459.0,0.11]
[1729566680907,0.42333572,67460.0,67456.0,0.11]
[1729566681114,0.184146,67458.0,67456.0,0.11]
[1729566682609,0.074147,67457.0,67456.0,0.11]
[1729566682921,0.074147,67457.0,67456.0,0.112]
[1729566683113,0.074147,67457.0,67456.0,0.002]
[1729566683804,0.074147,67457.0,67456.0,0.006]
[1729566684611,0.074147,67457.0,67456.0,0.117]
[1729566685013,0.074147,67457.0,67456.0,0.118]
[1729566690620,0.15598469,67457.0,67456.0,0.118]
[1729566690818,0.074147,67457.0,67456.0,0.118]
[1729566694626,0.11046378,67457.0,67456.0,0.118]
[1729566697528,0.3608,67458.0,67456.0,0.118]
[1729566698626,0.3608,67458.0,67456.0,0.115]
[1729566698831,0.3608,67458.0,67456.0,0.117]
[1729566699333,0.3608,67458.0,67456.0,0.116]
[1729566699832,0.434946,67458.0,67456.0,0.116]
[1729566700133,0.434946,67458.0,67457.0,0.17702189]
[1729566701329,0.434946,67458.0,67457.0,0.002]
[1729566702233,0.3608,67458.0,67457.0,0.002]
[1729566702435,0.434946,67458.0,67457.0,0.002]
[1729566702837,0.434946,67458.0,67457.0,0.006]
[1729566705343,0.3608,67458.0,67457.0,0.006]
[1729566708037,0.3608,67458.0,67457.0,0.080147]
[1729566714753,0.39711576,67458.0,67457.0,0.080147]
[1729566715446,0.00222438,67463.0,67457.0,0.116]
[1729566715647,0.00222438,67463.0,67462.0,0.184141]
[1729566716146,0.00222438,67463.0,67462.0,0.074141]
[1729566716738,0.00222438,67463.0,67462.0,0.184141]
[1729566717750,0.00222438,67463.0,67462.0,0.189141]
[1729566718347,0.00222438,67463.0,67462.0,0.195141]
[1729566719048,0.00222438,67463.0,67462.0,0.2218537]
[1729566720139,0.00222438,67463.0,67462.0,0.1118537]
[1729566720343,0.00222438,67463.0,67462.0,0.26914224]
[1729566720544,0.00222438,67463.0,67462.0,0.195141]
[1729566723344,0.00222438,67463.0,67462.0,0.305141]
[1729566723547,0.00222438,67463.0,67462.0,0.195141]
[1729566723747,0.00222438,67463.0,67462.0,0.305141]
[1729566723947,0.00222438,67463.0,67462.0,0.195141]
[1729566724158,0.3608,67465.0,67464.0,0.074139]
[1729566725351,0.3608,67465.0,67464.0,0.082139]
[1729566726754,0.3608,67465.0,67464.0,0.06725835]
[1729566727052,0.434938,67465.0,67464.0,0.17725835]
[1729566727354,0.49581241,67465.0,67463.0,0.07342432]
[1729566727554,0.13501241,67464.0,67463.0,0.07342432]
[1729566727950,0.13501241,67464.0,67463.0,0.18342432]
[1729566728953,0.13501241,67464.0,67463.0,0.18842432]
[1729566729549,0.13501241,67464.0,67463.0,0.18342432]
[1729566729745,0.13501241,67464.0,67463.0,0.18942432]
[1729566729956,0.13501241,67464.0,67463.0,0.116]
[1729566730157,0.13501241,67464.0,67463.0,0.119]
[1729566730552,0.13501241,67464.0,67463.0,0.19314]
[1729566730951,0.13501241,67464.0,67463.0,0.19414]
[1729566733157,0.03631262,67464.0,67463.0,0.19414]
[1729566734062,0.03631262,67464.0,67463.0,0.08414]
[1729566734561,0.3608,67465.0,67464.0,0.074139]
[1729566735662,0.3608,67465.0,67464.0,0.078139]
[1729566737162,0.3608,67465.0,67464.0,0.081139]
[1729566742462,0.44262667,67465.0,67464.0,0.081139]
[1729566743272,0.39711202,67465.0,67464.0,0.081139]
[1729566744563,0.44262636,67465.0,67464.0,0.081139]
[1729566745061,0.44262691,67465.0,67464.0,0.081139]
[1729566745561,0.39711202,67465.0,67464.0,0.081139]
[1729566745872,0.44262485,67465.0,67464.0,0.081139]
[1729566749363,0.3608,67465.0,67464.0,0.18522454]
[1729566750168,0.3608,67465.0,67464.0,0.29522454]
[1729566750561,0.3608,67465.0,67464.0,0.18522454]
[1729566750763,0.3608,67465.0,67464.0,0.18522708]
[1729566752066,0.434938,67465.0,67464.0,0.18522708]
[1729566757270,0.434938,67465.0,67464.0,0.081139]
[1729566757271,0.3608,67465.0,67464.0,0.081139]
[1729566757475,0.3608,67465.0,67464.0,0.15529173]
[1729566759978,0.434935,67468.0,67466.0,0.074136]
[1729566760179,0.434935,67468.0,67467.0,0.11]
[1729566761177,0.3608,67468.0,67467.0,0.184136]
[1729566762983,0.3608,67468.0,67467.0,0.185136]
[1729566763480,0.3608,67468.0,67467.0,0.25928873]
[1729566765586,0.10084474,67474.0,67470.0,0.074132]
[1729566765784,0.10084474,67474.0,67472.0,0.11]
[1729566766283,0.02671574,67474.0,67473.0,0.074129]
[1729566766479,0.43714853,67477.0,67473.0,0.074129]
[1729566766677,0.43714853,67477.0,67475.0,0.11]
[1729566767582,0.44014853,67477.0,67475.0,0.11]
[1729566768086,0.43714853,67477.0,67475.0,0.11]
[1729566768379,0.43714853,67477.0,67475.0,0.111]
[1729566768380,0.44014853,67477.0,67475.0,0.111]
[1729566768580,0.4674008,67477.0,67475.0,0.111]
[1729566769085,0.4714008,67477.0,67475.0,0.112]
[1729566769280,0.11,67476.0,67475.0,0.112]
[1729566769588,0.24499688,67476.0,67475.0,0.112]
[1729566770181,0.24499688,67476.0,67475.0,0.111]
[1729566770382,0.24899688,67476.0,67475.0,0.111]
[1729566770589,0.19581861,67476.0,67475.0,0.111]
[1729566770884,0.19881861,67476.0,67475.0,0.111]
[1729566771784,0.19881861,67476.0,67475.0,0.001]
[1729566771986,0.15330844,67476.0,67475.0,0.001]
[1729566772181,0.04330844,67476.0,67475.0,0.185127]
[1729566772487,0.04330844,67476.0,67475.0,0.22962311]
[1729566772488,0.007,67476.0,67475.0,0.22962311]
[1729566772689,0.007,67476.0,67475.0,0.185127]
[1729566774687,0.007,67476.0,67475.0,0.22959866]
[1729566775278,0.007,67476.0,67475.0,0.185127]
[1729566775482,0.007,67476.0,67475.0,0.33959866]
[1729566775788,0.007,67476.0,67475.0,0.185127]
[1729566776279,0.003,67476.0,67475.0,0.194127]
[1729566776474,0.003,67476.0,67475.0,0.202127]
[1729566776984,0.003,67476.0,67475.0,0.312127]
[1729566777186,0.003,67476.0,67475.0,0.202127]
[1729566779278,0.003,67476.0,67475.0,0.22878282]
[1729566780282,0.16541557,67476.0,67475.0,0.22778282]
[1729566780487,0.16541557,67476.0,67475.0,0.33778282]
[1729566780786,0.21092087,67476.0,67475.0,0.33778282]
[1729566780985,0.2472253,67476.0,67475.0,0.33778282]
[1729566781176,0.08480973,67476.0,67475.0,0.33778282]
[1729566781888,0.08480973,67476.0,67475.0,0.90414282]
[1729566782682,0.08480973,67476.0,67475.0,0.90877847]
[1729566782880,0.08480973,67476.0,67475.0,0.12241847]
[1729566783080,0.08480973,67476.0,67475.0,0.46417847]
[1729566785192,0.08480973,67476.0,67475.0,0.45954282]
[1729566786291,0.08480973,67476.0,67475.0,0.46417853]
[1729566786592,0.16241557,67484.0,67483.0,0.074118]
[1729566786985,0.16241557,67485.0,67484.0,0.074117]
[1729566787186,0.00222297,67490.0,67483.0,0.074118]
[1729566787386,0.00222297,67490.0,67480.0,0.3608]
[1729566787387,0.00222297,67490.0,67489.0,0.184112]
[1729566788491,0.00622297,67490.0,67489.0,0.184112]
[1729566788794,0.00622297,67490.0,67489.0,0.074112]
[1729566788989,0.00622297,67490.0,67489.0,0.184112]
[1729566789392,0.01022297,67490.0,67489.0,0.184112]
[1729566789888,0.00622297,67490.0,67489.0,0.184112]
[1729566790394,0.19033297,67490.0,67486.0,0.074115]
[1729566790694,0.19033297,67490.0,67487.0,0.11]
[1729566791887,0.18633297,67490.0,67487.0,0.11]
[1729566792091,0.074112,67489.0,67486.0,0.074115]
[1729566792397,0.11,67487.0,67486.0,0.074115]
[1729566793102,0.11622297,67490.0,67488.0,0.074112]
[1729566793393,0.00622297,67490.0,67489.0,0.15437974]
[1729566793587,0.00622297,67490.0,67489.0,0.22849174]
[1729566793787,0.00322297,67490.0,67489.0,0.22849174]
[1729566793988,0.00722297,67490.0,67489.0,0.22849174]
[1729566794188,0.00622297,67490.0,67489.0,0.22849174]
[1729566794489,0.00722297,67490.0,67489.0,0.22849174]